bitfinex/quotes_SOLUSD_20250604
["timestamp","ask_amount","ask_price","bid_price","bid_amount"]
[1749003149718,19.07613357,157.29,157.26,39.02]
[1749003150059,19.07613357,157.29,157.25,10.16]
[1749003150337,26.0,157.26,157.25,10.16]
[1749003150531,26.0,157.26,157.25,39.02]
[1749003150837,20.38451043,157.25,157.21,10.16]
[1749003151038,12.84373679,157.22,157.21,10.16]
[1749003151213,12.84373679,157.22,157.21,49.18]
[1749003152941,1.5927,157.25,157.21,49.18]
[1749003153122,12.84373679,157.23,157.21,49.18]
[1749003154129,12.84373679,157.22,157.21,49.18]
[1749003155035,1.5927,157.25,157.21,49.18]
[1749003155351,12.84373679,157.22,157.21,49.18]
[1749003159848,12.84373679,157.22,157.21,10.16]
[1749003160153,38.84373679,157.22,157.21,39.02]
[1749003161333,12.84373679,157.23,157.21,39.02]
[1749003161849,1.5066,157.3,157.22,23.00373679]
[1749003162165,1.5066,157.3,157.24,12.84373679]
[1749003162345,12.84373679,157.29,157.25,51.86373679]
[1749003163050,20.29841043,157.33,157.25,51.86373679]
[1749003163355,12.84373679,157.3,157.25,51.86373679]
[1749003164752,12.84373679,157.3,157.25,51.50522751]
[1749003166246,46.29841043,157.33,157.25,39.02]
[1749003166247,12.84373679,157.29,157.25,39.02]
[1749003166639,12.84373679,157.26,157.22,23.00373679]
[1749003166845,12.84373679,157.27,157.23,39.02]
[1749003167657,12.84373679,157.27,157.23,51.86373679]
[1749003167959,12.84373679,157.27,157.24,39.02]
[1749003173234,26.0,157.3,157.24,39.02]
[1749003173435,12.84373679,157.28,157.24,39.02]
[1749003174236,12.84373679,157.27,157.24,39.02]
[1749003177342,12.84373679,157.28,157.24,39.02]
[1749003178658,1.5066,157.33,157.25,12.84373679]
[1749003178870,12.84373679,157.27,157.24,39.02]
[1749003179399,12.84373679,157.26,157.24,39.02]
[1749003179877,12.84373679,157.27,157.25,39.02]
[1749003180662,26.0,157.3,157.26,10.16]
[1749003180663,12.84373679,157.28,157.26,10.16]
[1749003181576,26.0,157.32,157.26,10.16]
[1749003181877,12.84373679,157.31,157.27,12.84373679]
[1749003182254,12.84373679,157.31,157.26,23.00373679]
[1749003182654,6.4111,157.35,157.28,12.84373679]
[1749003182862,12.84373679,157.32,157.29,39.02]
[1749003183057,6.4111,157.35,157.29,39.02]
[1749003183281,12.84373679,157.32,157.29,39.02]
[1749003184475,6.4111,157.35,157.29,39.02]
[1749003184906,12.84373679,157.32,157.29,39.02]
[1749003186007,12.84373679,157.35,157.31,12.84373679]
[1749003186203,12.84373679,157.36,157.32,10.16]
[1749003186402,12.84373679,157.35,157.33,39.02]
[1749003191284,1.6519,157.37,157.33,39.02]
[1749003191285,12.84373679,157.36,157.33,39.02]
[1749003191900,6.1218,157.39,157.33,39.02]
[1749003192091,12.84373679,157.38,157.34,12.84373679]
[1749003192292,27.558,157.41,157.35,12.84373679]
[1749003192598,12.84373679,157.39,157.35,12.84373679]
[1749003198008,12.84373679,157.39,157.33,39.02]
[1749003198185,12.84373679,157.39,157.34,12.84373679]
[1749003200009,27.558,157.41,157.32,10.16]
[1749003200010,12.84373679,157.37,157.32,10.16]
[1749003200216,12.84373679,157.34,157.33,39.0]
[1749003200892,12.84373679,157.34,157.32,10.16]
[1749003201095,12.84373679,157.33,157.32,10.16]
[1749003201524,12.84373679,157.33,157.32,49.16]
[1749003201715,12.84373679,157.33,157.32,39.0]
[1749003202234,26.0,157.31,157.28,10.14]
[1749003202391,12.84373679,157.29,157.28,10.14]
[1749003202593,12.84373679,157.29,157.28,49.14]
[1749003202897,12.84373679,157.29,157.28,10.14]
[1749003203093,12.84373679,157.29,157.28,49.14]
[1749003204734,1.656,157.35,157.28,49.14]
[1749003204887,12.84373679,157.3,157.28,49.14]
[1749003205322,12.84373679,157.29,157.28,49.14]
[1749003207901,19.07613357,157.32,157.28,49.14]
[1749003208105,12.84373679,157.29,157.28,49.14]
[1749003210843,12.84373679,157.29,157.28,10.14]
[1749003211004,12.84373679,157.29,157.28,49.14]
[1749003213100,12.84373679,157.29,157.28,10.14]
[1749003213322,12.84373679,157.29,157.28,49.14]
[1749003216059,12.84373679,157.29,157.28,10.14]
[1749003216226,12.84373679,157.29,157.28,49.14]
[1749003225692,39.54547036,157.29,157.24,10.14]
[1749003225865,12.84373679,157.26,157.25,39.0]
[1749003226050,7.6256,157.29,157.25,39.0]
[1749003226051,12.84373679,157.28,157.25,39.0]
[1749003227061,1.6355,157.34,157.26,12.84373679]
[1749003227271,12.84373679,157.35,157.3,12.84373679]
[1749003227469,12.84373679,157.35,157.31,61.98373679]
[1749003227662,12.84373679,157.35,157.32,10.14]
[1749003228071,12.84373679,157.37,157.32,22.98373679]
[1749003228679,25.43313357,157.41,157.32,22.98373679]
[1749003228680,6.357,157.41,157.34,12.84373679]
[1749003228890,12.84373679,157.39,157.35,39.0]
[1749003229878,12.84373679,157.38,157.35,39.0]
[1749003230467,12.84373679,157.37,157.35,39.0]
[1749003231555,12.84373679,157.36,157.32,10.14]
[1749003231756,12.84373679,157.34,157.33,39.0]
[1749003232687,12.84373679,157.35,157.33,39.0]
[1749003232999,12.84373679,157.35,157.34,39.0]
[1749003233312,12.84373679,157.36,157.34,39.0]
[1749003233599,12.84373679,157.38,157.34,39.0]
[1749003233802,12.84373679,157.36,157.34,39.0]
[1749003234611,12.84373679,157.35,157.34,39.0]
[1749003236491,12.84373679,157.37,157.34,39.0]
[1749003238365,12.84373679,157.38,157.34,51.84373679]
[1749003243179,12.84373679,157.38,157.34,39.0]
[1749003243985,6.357,157.41,157.34,39.0]
[1749003244296,12.84373679,157.38,157.34,51.84373679]
[1749003245501,12.84373679,157.39,157.35,12.84373679]
[1749003246403,12.84373679,157.38,157.34,51.84373679]
[1749003247039,12.84373679,157.36,157.35,38.98]
[1749003248409,12.84373679,157.36,157.32,22.98373679]
[1749003248597,12.84373679,157.36,157.35,38.98]
[1749003248796,12.84373679,157.36,157.32,22.98373679]
[1749003249004,12.84373679,157.34,157.32,10.14]
[1749003249182,12.84373679,157.34,157.33,38.98]
[1749003250202,12.84373679,157.34,157.32,10.14]
[1749003250397,12.84373679,157.34,157.33,38.98]
[1749003251796,1.5959,157.36,157.33,38.98]
[1749003252108,12.84373679,157.37,157.33,38.98]
[1749003252308,12.84373679,157.37,157.33,51.82373679]
[1749003252711,7.9702,157.41,157.34,12.84373679]
[1749003252915,12.84373679,157.4,157.36,12.84373679]
[1749003253088,12.84373679,157.4,157.37,49.12]
[1749003254587,12.84373679,157.39,157.37,49.12]
[1749003256899,12.84373679,157.38,157.37,49.12]
[1749003260324,12.84373679,157.38,157.37,38.98]
[1749003260325,31.91987036,157.38,157.37,38.98]
[1749003263620,12.84373679,157.38,157.37,38.98]
[1749003278429,12.84373679,157.38,157.26,54.86]
[1749003278430,26.0,157.3,157.26,54.86]
[1749003278627,26.0,157.3,157.25,10.14]
[1749003278628,26.0,157.3,157.29,38.98]
[1749003278837,38.84373679,157.3,157.28,38.98]
[1749003279009,12.84373679,157.29,157.28,38.98]
[1749003280515,16.48665341,157.29,157.28,38.98]
[1749003280713,12.84373679,157.29,157.28,38.98]
[1749003281934,44.76360715,157.29,157.28,38.98]
[1749003282233,26.0,157.26,157.25,10.14]
[1749003282414,38.84373679,157.26,157.25,49.12]
[1749003285541,38.84373679,157.26,157.25,10.14]
[1749003285747,38.84373679,157.26,157.21,10.14]
[1749003286042,12.84373679,157.22,157.21,10.14]
[1749003286212,12.84373679,157.22,157.21,49.12]
[1749003290761,26.0,157.26,157.21,49.12]
[1749003290957,1.6653,157.3,157.21,49.12]
[1749003290958,12.84373679,157.25,157.21,61.96373679]
[1749003291440,12.84373679,157.22,157.21,49.12]
[1749003291838,12.84373679,157.24,157.21,49.12]
[1749003292222,12.84373679,157.23,157.21,49.12]
[1749003295526,26.0,157.28,157.21,49.12]
[1749003295726,12.84373679,157.24,157.21,49.12]
[1749003296484,38.84373679,157.28,157.21,49.12]
[1749003296485,12.84373679,157.23,157.21,49.12]
[1749003297974,12.84373679,157.24,157.21,49.12]
[1749003300579,12.84373679,157.24,157.22,10.14]
[1749003302765,12.84373679,157.23,157.22,10.14]
[1749003304765,12.84373679,157.24,157.22,10.14]
[1749003304988,1.6653,157.3,157.22,10.14]
[1749003305297,1.6653,157.3,157.25,12.84373679]
[1749003305298,12.84373679,157.3,157.25,12.84373679]
[1749003305577,12.84373679,157.31,157.27,12.84373679]
[1749003305884,12.84373679,157.31,157.28,10.14]
[1749003306385,12.84373679,157.3,157.28,10.14]
[1749003308983,26.0,157.33,157.28,10.14]
[1749003309165,12.84373679,157.32,157.28,10.14]
[1749003309363,12.84373679,157.31,157.28,10.14]
[1749003309787,12.84373679,157.32,157.28,10.14]
[1749003310105,0.14216157,157.35,157.3,12.84373679]
[1749003310106,12.84373679,157.35,157.3,12.84373679]
[1749003310386,12.84373679,157.36,157.31,51.82373679]
[1749003311171,12.84373679,157.35,157.31,51.82373679]
[1749003311368,12.84373679,157.33,157.31,38.98]
[1749003313891,12.84373679,157.34,157.31,38.98]
[1749003320977,12.84373679,157.33,157.31,38.98]
[1749003323369,12.84373679,157.32,157.28,10.14]
[1749003323570,12.98589836,157.36,157.29,38.98]
[1749003323571,12.84373679,157.31,157.29,38.98]
[1749003323786,12.84373679,157.31,157.28,10.14]
[1749003323986,12.84373679,157.3,157.28,10.14]
[1749003324213,12.84373679,157.3,157.29,38.98]
[1749003324877,12.84373679,157.3,157.29,38.96]
[1749003325181,12.84373679,157.3,157.28,10.14]
[1749003325390,1.6413,157.32,157.29,38.96]
[1749003325694,12.84373679,157.3,157.29,38.96]
[1749003327998,12.84373679,157.3,157.28,10.14]
[1749003328321,26.0,157.31,157.29,38.98]
[1749003328481,12.84373679,157.3,157.28,10.14]
[1749003328682,26.0,157.31,157.29,38.98]
[1749003329791,12.84373679,157.3,157.29,38.98]
[1749003330181,12.84373679,157.3,157.29,38.96]
[1749003331295,12.84373679,157.3,157.28,10.14]
[1749003331618,12.84373679,157.29,157.28,10.14]
[1749003331789,12.84373679,157.29,157.28,49.12]
[1749003344434,12.84373679,157.29,157.28,10.14]
[1749003344677,12.84373679,157.29,157.28,49.1]
[1749003349849,12.84373679,157.29,157.28,10.14]
[1749003350050,12.84373679,157.29,157.28,49.1]
[1749003350260,29.47410395,157.29,157.28,49.1]
[1749003350438,29.47407426,157.29,157.24,10.12]
[1749003350642,12.84373679,157.25,157.24,10.12]
[1749003350829,12.84373679,157.25,157.24,49.08]
[1749003352196,12.84373679,157.25,157.24,10.12]
[1749003352348,12.84373679,157.25,157.24,49.08]
[1749003352544,12.84373679,157.28,157.24,49.08]
[1749003354328,12.84373679,157.26,157.24,49.08]
[1749003355556,12.84373679,157.27,157.24,49.08]
[1749003356663,12.84373679,157.26,157.24,49.08]
[1749003361066,12.84373679,157.26,157.24,10.12]
[1749003361275,3.64345966,157.3,157.24,10.12]
[1749003361276,12.84373679,157.25,157.24,10.12]
[1749003361572,12.84373679,157.25,157.24,49.08]
[1749003361945,12.84373679,157.26,157.24,49.08]
[1749003363565,12.84373679,157.29,157.24,61.92373679]
[1749003363767,3.64605807,157.31,157.27,12.84373679]
[1749003364081,12.84373679,157.32,157.28,38.96]
[1749003364374,12.84373679,157.32,157.29,10.12]
[1749003364686,12.84373679,157.31,157.29,10.12]
[1749003366978,12.84373679,157.33,157.29,10.12]
[1749003367277,12.84373679,157.33,157.29,22.96373679]
[1749003367455,12.84373679,157.34,157.29,22.96373679]
[1749003367658,3.6470142,157.35,157.3,12.84373679]
[1749003367847,12.84373679,157.35,157.3,12.84373679]
[1749003368051,0.14216157,157.4,157.33,12.84373679]
[1749003368052,1.6316,157.4,157.33,12.84373679]
[1749003368263,12.84373679,157.38,157.34,61.92373679]
[1749003369682,14.47533679,157.4,157.35,12.84373679]
[1749003369978,12.84373679,157.38,157.34,61.92373679]
[1749003370483,12.84373679,157.38,157.34,49.08]
[1749003372471,12.84373679,157.39,157.34,61.92373679]
[1749003374091,12.84373679,157.38,157.34,61.92373679]
[1749003374289,1.6363,157.45,157.37,12.84373679]
[1749003374478,12.84373679,157.43,157.39,12.84373679]
[1749003374719,1.6363,157.45,157.4,10.12]
[1749003374876,12.84373679,157.44,157.4,10.12]
[1749003375191,12.84373679,157.43,157.4,10.12]
[1749003378366,12.84373679,157.42,157.4,10.12]
[1749003380426,1.6363,157.45,157.4,22.96373679]
[1749003380582,14.48003679,157.45,157.4,22.96373679]
[1749003380913,12.84373679,157.44,157.4,10.12]
[1749003381210,12.84373679,157.43,157.4,10.12]
[1749003381881,12.84373679,157.42,157.4,10.12]
[1749003382100,12.84373679,157.41,157.4,10.12]
[1749003383098,12.84373679,157.41,157.4,49.04]
[1749003384874,1.6363,157.45,157.4,61.88373679]
[1749003385080,14.48003679,157.45,157.4,61.88373679]
[1749003386127,1.6363,157.45,157.4,49.04]
[1749003386284,12.84373679,157.46,157.41,13.34373679]
[1749003386474,27.5812,157.49,157.41,13.34373679]
[1749003386475,1.5812,157.49,157.42,12.84373679]
[1749003386679,12.84373679,157.48,157.43,12.84373679]
[1749003386913,12.84373679,157.47,157.44,38.92]
[1749003387080,12.84373679,157.47,157.45,10.1]
[1749003389188,12.84373679,157.46,157.45,10.1]
[1749003389598,12.84373679,157.46,157.41,0.5]
[1749003389599,0.14216157,157.45,157.41,10.1]
[1749003389906,0.14216157,157.41,157.37,10.1]
[1749003390093,12.84373679,157.38,157.37,10.1]
[1749003390293,12.84373679,157.38,157.37,49.02]
[1749003392015,12.84373679,157.38,157.37,10.1]
[1749003392310,12.84373679,157.38,157.37,49.02]
[1749003393205,12.98589836,157.38,157.37,10.1]
[1749003393418,12.98589836,157.38,157.37,49.02]
[1749003393606,12.98589836,157.38,157.37,10.1]
[1749003393810,12.98589836,157.38,157.37,49.02]
[1749003394312,12.98589836,157.38,157.37,38.92]
[1749003394914,12.98589836,157.38,157.33,10.1]
[1749003395085,0.14216157,157.38,157.34,38.92]
[1749003395286,12.84373679,157.35,157.34,38.92]
[1749003396513,12.84373679,157.35,157.33,10.1]
[1749003396712,12.84373679,157.34,157.33,10.1]
[1749003397090,12.84373679,157.34,157.33,49.02]
[1749003397907,6.0175,157.37,157.33,49.02]
[1749003398221,12.84373679,157.34,157.33,49.02]
[1749003400400,12.84373679,157.34,157.33,10.1]
[1749003400597,12.84373679,157.34,157.33,49.02]
[1749003401902,0.28432314,157.39,157.33,49.02]
[1749003401903,0.14216157,157.39,157.33,49.02]
[1749003402113,12.84373679,157.36,157.33,49.02]
[1749003402402,0.14216157,157.39,157.33,49.02]
[1749003402614,12.84373679,157.34,157.33,49.02]
[1749003405803,12.84373679,157.35,157.33,49.02]
[1749003407720,0.14216157,157.39,157.33,49.02]
[1749003407910,12.84373679,157.37,157.33,61.86373679]
[1749003408105,12.84373679,157.37,157.33,49.02]
[1749003408304,12.84373679,157.36,157.33,49.02]
[1749003409334,12.84373679,157.35,157.33,49.02]
[1749003409705,12.84373679,157.34,157.33,10.1]
[1749003410311,12.84373679,157.34,157.33,49.02]
[1749003410840,26.0,157.36,157.33,49.02]
[1749003411137,12.84373679,157.35,157.33,49.02]
[1749003412033,38.84373679,157.35,157.33,49.02]
[1749003412533,38.84373679,157.37,157.33,49.02]
[1749003412744,12.84373679,157.36,157.33,49.02]
[1749003412928,12.84373679,157.34,157.33,49.02]
[1749003415739,12.84373679,157.34,157.33,10.1]
[1749003415924,12.84373679,157.34,157.33,49.02]
[1749003420332,12.84373679,157.36,157.33,49.02]
[1749003420846,12.84373679,157.35,157.33,49.02]
[1749003425044,12.84373679,157.34,157.33,49.02]
[1749003426921,12.84373679,157.34,157.33,10.1]
[1749003427117,12.84373679,157.34,157.33,49.02]
[1749003429045,12.84373679,157.35,157.33,49.02]
[1749003429772,12.84373679,157.35,157.34,10.1]
[1749003430633,12.84373679,157.35,157.34,49.02]
[1749003431474,12.84373679,157.35,157.34,10.1]
[1749003431843,12.84373679,157.35,157.34,49.02]
[1749003432272,0.14216157,157.34,157.3,10.1]
[1749003432458,12.84373679,157.31,157.3,10.1]
[1749003432774,12.84373679,157.31,157.3,49.02]
[1749003433576,12.84373679,157.33,157.3,49.02]
[1749003434850,12.84373679,157.32,157.31,38.92]
[1749003435262,12.84373679,157.33,157.31,38.92]
[1749003436272,12.84373679,157.32,157.31,38.92]
[1749003441781,12.84373679,157.32,157.26,80.86]
[1749003441782,0.42648471,157.31,157.26,64.96]
[1749003441963,12.84373679,157.27,157.26,64.96]
[1749003442149,12.84373679,157.27,157.26,49.02]
[1749003443359,12.84373679,157.27,157.26,10.1]
[1749003443560,12.84373679,157.27,157.26,49.02]
[1749003444579,12.98589836,157.27,157.26,10.1]
[1749003445081,12.98589836,157.27,157.26,49.02]
[1749003445248,12.84373679,157.27,157.26,49.02]
[1749003445453,0.14216157,157.28,157.26,49.02]
[1749003445654,12.84373679,157.27,157.26,49.02]
[1749003448481,0.14216157,157.26,157.22,10.1]
[1749003448682,12.84373679,157.23,157.22,10.1]
[1749003448895,12.84373679,157.23,157.22,49.04]
[1749003449383,12.84373679,157.23,157.22,10.1]
[1749003449586,12.84373679,157.23,157.22,49.04]
[1749003449960,12.84373679,157.23,157.22,10.1]
[1749003450270,12.84373679,157.23,157.22,49.04]
[1749003454086,12.84373679,157.23,157.22,10.1]
[1749003454298,12.84373679,157.23,157.22,49.04]
[1749003461600,12.98589836,157.23,157.22,10.1]
[1749003461785,12.98589836,157.23,157.22,49.04]
[1749003462896,12.98589836,157.23,157.18,10.1]
[1749003463076,12.84373679,157.19,157.18,10.1]
[1749003463476,12.84373679,157.19,157.18,49.04]
[1749003463679,12.84373679,157.19,157.18,10.1]
[1749003463880,12.84373679,157.19,157.18,49.04]
[1749003470309,12.98589836,157.19,157.18,10.1]
[1749003470527,0.14216157,157.18,157.14,10.1]
[1749003470814,0.14216157,157.18,157.15,38.94]
[1749003471189,0.14216157,157.18,157.16,38.94]
[1749003472008,12.84373679,157.17,157.16,38.94]
[1749003473198,12.84373679,157.17,157.14,10.1]
[1749003473533,12.84373679,157.15,157.14,10.1]
[1749003473712,12.84373679,157.15,157.14,49.04]
[1749003474210,12.98589836,157.15,157.14,10.1]
[1749003474384,12.98589836,157.15,157.14,49.04]
[1749003475096,12.98589836,157.15,157.14,38.94]
[1749003475491,12.98589836,157.15,157.13,38.94]
[1749003475492,1.69326157,157.14,157.13,38.94]
[1749003475902,14.53699836,157.14,157.1,10.1]
[1749003476106,12.98589836,157.11,157.1,10.1]
[1749003476308,12.98589836,157.11,157.1,49.04]
[1749003477124,12.98589836,157.11,157.1,38.94]
[1749003477922,0.14216157,157.1,157.06,10.1]
[1749003478219,12.84373679,157.07,157.06,10.1]
[1749003478897,1.6435,157.06,157.03,38.96]
[1749003479087,1.6435,157.06,157.04,38.96]
[1749003479292,1.78566157,157.06,157.05,38.96]
[1749003479594,0.14216157,157.05,156.99,65.02]
[1749003479794,0.14216157,157.05,157.0,38.96]
[1749003480126,12.84373679,157.01,156.99,65.02]
[1749003480299,12.84373679,157.0,156.99,65.02]
[1749003480498,12.84373679,157.0,156.99,103.98]
[1749003481212,12.84373679,157.0,156.99,65.02]
[1749003481400,1.6435,157.06,156.99,103.98]
[1749003481596,12.84373679,157.0,156.99,65.02]
[1749003481925,12.84373679,157.0,156.99,103.98]
[1749003482217,12.84373679,157.0,156.99,10.1]
[1749003482399,12.84373679,157.0,156.99,49.06]
[1749003484006,12.84373679,157.0,156.99,49.08]
[1749003484200,12.84373679,157.0,156.99,10.1]
[1749003484530,0.28432314,157.02,156.99,49.08]
[1749003484531,12.84373679,157.02,156.99,49.08]
[1749003484849,12.84373679,157.01,156.99,49.08]
[1749003485414,12.84373679,157.02,156.99,49.08]
[1749003485817,12.84373679,157.03,156.99,61.92373679]
[1749003486339,12.84373679,157.04,156.99,61.92373679]
[1749003486543,12.84373679,157.05,157.0,12.84373679]
[1749003486716,12.84373679,157.04,157.0,12.84373679]
[1749003487417,12.84373679,157.05,157.0,12.84373679]
[1749003488129,0.14216157,157.08,157.01,12.84373679]
[1749003488333,12.84373679,157.06,157.01,12.84373679]
[1749003488723,12.84373679,157.09,157.05,12.84373679]
[1749003488921,12.84373679,157.08,157.06,49.1]
[1749003489228,19.07613357,157.11,157.07,49.1]
[1749003489411,12.84373679,157.08,157.07,38.98]
[1749003489608,12.98589836,157.08,157.07,38.98]
[1749003489812,0.14216157,157.07,157.06,39.0]
[1749003490013,12.98589836,157.07,157.06,39.0]
[1749003490417,12.98589836,157.07,157.05,10.12]
[1749003490714,0.42648471,157.07,157.06,39.0]
[1749003491539,26.14216157,157.06,157.05,39.0]
[1749003491931,38.98589836,157.06,157.05,38.98]
[1749003493823,38.98589836,157.06,157.01,10.12]
[1749003494052,12.84373679,157.03,157.02,38.98]
[1749003494751,26.0,157.08,157.02,38.98]
[1749003495053,12.84373679,157.05,157.02,38.98]
[1749003502269,12.84373679,157.04,157.02,38.98]
[1749003503149,12.84373679,157.04,157.01,10.12]
[1749003503449,12.84373679,157.04,157.03,38.98]
[1749003504951,12.84373679,157.05,157.03,38.98]
[1749003507641,12.84373679,157.04,157.03,38.98]
[1749003509731,1.64406157,157.07,157.03,38.98]
[1749003509962,12.84373679,157.04,157.03,38.98]
[1749003510950,1.5019,157.07,157.03,38.98]
[1749003511255,0.14216157,157.11,157.06,12.84373679]
[1749003511454,12.84373679,157.11,157.07,61.94373679]
[1749003511634,12.84373679,157.11,157.07,49.1]
[1749003511831,12.84373679,157.13,157.08,12.84373679]
[1749003512251,12.84373679,157.11,157.07,49.1]
[1749003514064,12.84373679,157.11,157.07,61.94373679]
[1749003514537,12.84373679,157.11,157.07,113.24373679]
[1749003515554,12.84373679,157.12,157.07,113.24373679]
[1749003516070,12.84373679,157.11,157.07,100.4]
[1749003516547,12.84373679,157.1,157.07,100.4]
[1749003516941,12.84373679,157.1,157.07,61.42]
[1749003517142,12.84373679,157.09,157.08,38.98]
[1749003519366,12.84373679,157.09,157.07,61.42]
[1749003519566,0.14216157,157.1,157.08,38.98]
[1749003519741,12.84373679,157.09,157.08,38.98]
[1749003519939,12.84373679,157.09,157.07,61.42]
[1749003520154,0.14216157,157.1,157.08,38.98]
[1749003520743,3.78200711,157.1,157.07,10.12]
[1749003520944,26.14216157,157.08,156.98,7.4485]
[1749003521165,12.84373679,157.03,156.99,49.08]
[1749003521367,12.84373679,157.03,157.0,38.98]
[1749003521877,12.84373679,157.03,156.99,22.94373679]
[1749003522051,12.84373679,157.03,157.01,38.98]
[1749003522893,12.84373679,157.03,157.02,38.98]
[1749003525277,12.84373679,157.03,156.99,10.1]
[1749003525479,12.84373679,157.03,157.02,38.98]
[1749003525650,12.84373679,157.04,157.02,38.98]
[1749003527571,12.84373679,157.05,157.03,38.98]
[1749003528566,12.84373679,157.04,156.95,80.96]
[1749003528862,12.84373679,157.04,157.0,12.84373679]
[1749003529166,26.0,157.06,157.01,38.98]
[1749003529375,12.84373679,157.05,157.02,10.1]
[1749003530155,12.84373679,157.04,157.02,10.1]
[1749003530362,12.84373679,157.03,157.02,10.1]
[1749003532171,12.84373679,157.03,157.02,49.08]
[1749003533386,12.84373679,157.03,157.02,10.1]
[1749003533691,16.49396236,157.03,157.02,49.08]
[1749003534287,16.49396236,157.03,156.98,10.1]
[1749003534288,0.14216157,157.02,156.98,10.1]
[1749003534658,12.84373679,156.99,156.98,10.1]
[1749003535282,12.84373679,156.99,156.98,49.08]
[1749003536218,12.84373679,157.01,156.98,49.08]
[1749003537100,12.84373679,157.0,156.98,49.08]
[1749003537885,12.84373679,156.99,156.98,49.08]
[1749003541218,12.84373679,157.0,156.98,49.08]
[1749003541379,7.8369,157.08,156.99,12.84373679]
[1749003541578,7.8369,157.08,156.98,49.08]
[1749003541579,12.84373679,157.05,157.0,12.84373679]
[1749003541907,12.84373679,157.04,156.99,12.84373679]
[1749003542482,12.84373679,157.04,157.0,12.84373679]
[1749003544200,1.5579,157.08,157.03,12.84373679]
[1749003544407,14.40163679,157.08,157.04,49.08]
[1749003544729,12.84373679,157.09,157.05,12.84373679]
[1749003546195,12.84373679,157.1,157.05,12.84373679]
[1749003546395,14.47673679,157.13,157.08,12.84373679]
[1749003546604,12.84373679,157.12,157.09,49.08]
[1749003546796,1.633,157.13,157.09,49.08]
[1749003546797,12.84373679,157.11,157.09,49.08]
[1749003550185,12.84373679,157.12,157.09,49.08]
[1749003550431,26.0,157.15,157.09,61.92373679]
[1749003550716,38.84373679,157.15,157.1,12.84373679]
[1749003551813,12.84373679,157.13,157.09,61.92373679]
[1749003552015,12.84373679,157.12,157.09,49.08]
[1749003552215,26.0,157.15,157.09,49.08]
[1749003552406,12.84373679,157.13,157.09,61.92373679]
[1749003553504,1.5557,157.18,157.12,12.84373679]
[1749003553707,14.39943679,157.18,157.14,12.84373679]
[1749003553916,12.84373679,157.18,157.15,49.08]
[1749003554115,12.84373679,157.19,157.15,49.08]
[1749003557214,12.84373679,157.21,157.17,12.84373679]
[1749003557529,12.84373679,157.21,157.15,49.08]
[1749003557530,12.84373679,157.21,157.16,12.84373679]
[1749003557707,12.84373679,157.2,157.16,12.84373679]
[1749003558334,12.84373679,157.21,157.17,12.84373679]
[1749003559033,12.84373679,157.21,157.16,12.84373679]
[1749003559210,12.84373679,157.21,157.17,12.84373679]
[1749003559412,14.36563679,157.22,157.17,12.84373679]
[1749003559713,1.5219,157.22,157.17,12.84373679]
[1749003559908,14.36563679,157.22,157.18,12.84373679]
[1749003560104,14.36563679,157.22,157.19,38.96]
[1749003560304,12.84373679,157.22,157.2,10.1]
[1749003561333,12.84373679,157.21,157.2,10.1]
[1749003561536,38.84373679,157.21,157.2,10.1]
[1749003561836,26.0,157.18,157.15,10.1]
[1749003562036,12.84373679,157.16,157.13,10.1]
[1749003562210,12.84373679,157.14,157.13,10.1]
[1749003562403,12.84373679,157.14,157.13,49.06]
[1749003562632,12.84373679,157.15,157.13,49.06]
[1749003563444,12.84373679,157.14,157.13,49.06]
[1749003564531,12.84373679,157.14,157.13,10.1]
[1749003564749,12.84373679,157.14,157.13,49.06]